fUSD/lending_fUSD_20260314
["ID","MTS","AMOUNT","RATE_DAILY","PERIOD"]
[408361633,1773492647312,-460.10536322,0.00042853,2]
[408361634,1773492647322,-300.0,0.00042853,2]
[408361635,1773492647331,-300.0,0.00042853,2]
[408361636,1773492647341,-300.0,0.00042853,2]
[408361637,1773492647351,-300.0,0.00042853,2]
[408361638,1773492647361,-300.0,0.00042853,2]
[408361639,1773492647371,-302.45218568,0.00042853,2]
[408361640,1773492647382,-401.36789292,0.00042853,2]
[408361641,1773492647392,-300.0,0.00042853,2]
[408361642,1773492647402,-300.0,0.00042853,2]
[408361643,1773492647411,-520.42881649,0.00042853,2]
[408361644,1773492647420,-307.31607308,0.00042853,2]
[408361645,1773492647429,-300.0,0.00042853,2]
[408361646,1773492647438,-300.0,0.00042853,2]
[408361647,1773492647448,-300.0,0.00042853,2]
[408361648,1773492647457,-416.45217614,0.00042853,2]
[408361649,1773492647467,-300.0,0.00042853,2]
[408361650,1773492647478,-700.68727719,0.00042853,2]
[408361651,1773492647487,-300.0,0.00042853,2]
[408361652,1773492647496,-300.0,0.00042853,2]
[408361653,1773492647507,-300.0,0.00042853,2]
[408361654,1773492647516,-1085.86135591,0.00042853,2]
[408361655,1773492647525,-300.0,0.00042853,2]
[408361656,1773492647534,-300.0,0.00042853,2]
[408361657,1773492647544,-300.0,0.00042853,2]
[408361658,1773492647554,-300.0,0.00042853,2]
[408361659,1773492647563,-300.0,0.00042853,2]
[408361660,1773492647573,-300.0,0.00042853,2]
[408361661,1773492647582,-300.0,0.00042853,2]
[408361662,1773492647592,-300.0,0.00042853,2]
[408361663,1773492647601,-300.0,0.00042853,2]
[408361664,1773492647611,-300.0,0.00042853,2]
[408361665,1773492647621,-300.0,0.00042853,2]
[408361666,1773492647630,-301.17031761,0.00042853,2]
[408361667,1773492647640,-300.0,0.00042853,2]
[408361668,1773492647649,-300.0,0.00042853,2]
[408361669,1773492647665,-484.76990399,0.00042853,2]
[408361670,1773492647677,-300.0,0.00042853,2]
[408361671,1773492647686,-303.20588711,0.00042853,2]
[408361672,1773492647696,-300.0,0.00042853,2]
[408361673,1773492647712,-300.0,0.00042853,2]
[408361674,1773492647732,-448.21273408,0.00042853,2]
[408361675,1773492647743,-300.0,0.00042853,2]
[408361676,1773492647755,-1050.14169216,0.00042853,2]
[408361677,1773492647765,-307.09317041,0.00042853,2]
[408361678,1773492647774,-300.0,0.00042853,2]
[408361679,1773492647784,-857.47271976,0.00042853,2]
[408361680,1773492647795,-300.0,0.00042853,2]
[408361681,1773492647804,-300.0,0.00042853,2]
[408361682,1773492647814,-300.0,0.00042853,2]
[408361683,1773492647823,-300.0,0.00042853,2]
[408361684,1773492647834,-308.36419653,0.00042853,2]
[408361685,1773492647843,-300.0,0.00042853,2]
[408361686,1773492647853,-300.0,0.00042853,2]
[408361687,1773492647862,-300.0,0.00042853,2]
[408361688,1773492647871,-460.10536322,0.00042853,2]
[408361689,1773492647880,-300.0,0.00042853,2]
[408361690,1773492647889,-300.0,0.00042853,2]
[408361691,1773492647899,-300.0,0.00042853,2]
[408361692,1773492647909,-448.21273408,0.00042853,2]
[408361693,1773492647918,-300.0,0.00042853,2]
[408361694,1773492647927,-300.0,0.00042853,2]
[408361695,1773492647936,-302.45218568,0.00042853,2]
[408361696,1773492647945,-300.0,0.00042853,2]
[408361697,1773492647954,-300.0,0.00042853,2]
[408361698,1773492647963,-300.0,0.00042853,2]
[408361699,1773492647973,-520.42881649,0.00042853,2]
[408361700,1773492647982,-1695.1706,0.0004287,2]
[408361701,1773492647991,-150.0,0.00043,2]
[408361702,1773492648001,-169.4561383,0.00043,7]
[408361703,1773492648010,-169.4561383,0.00043,7]
[408361704,1773492648020,-169.45613829,0.00043,7]
[408361705,1773492648029,-169.45613829,0.00043,7]
[408361706,1773492648039,-151.23,0.00043058,2]
[408361707,1773492648047,-250.0,0.00043068,120]
[408361708,1773492648056,-250.0,0.00043068,120]
[408361709,1773492648066,-250.0,0.00043068,120]
[408361710,1773492648075,-250.0,0.00043068,120]
[408361711,1773492648085,-250.0,0.00043068,120]
[408361712,1773492648094,-624.28342307,0.00043288,10]
[408361713,1773492648103,-506.0,0.00043526,26]
[408361714,1773492648113,-1116.53293593,0.00043562,120]
[408361715,1773492648123,-4843.0,0.0004365,60]
[408361716,1773492648132,-151.5,0.0004371,2]
[408361717,1773492648141,-620.0,0.00043718,2]
[408361718,1773492648150,-1260.0,0.00043718,2]
[408361719,1773492648160,-414.0,0.00043718,2]
[408361720,1773492648169,-2463.0,0.00043718,2]
[408361721,1773492648179,-160.0,0.000438,120]
[408361722,1773492648188,-171.05000025,0.00043808,120]
[408361723,1773492648197,-150.0,0.00043836,10]
[408361724,1773492648206,-690.9,0.00043849,120]
[408361725,1773492648216,-1695.1706,0.00043942,2]
[408361726,1773492648225,-546.574025,0.00044,8]
[408361727,1773492648234,-151.5,0.00044054,2]
[408361728,1773492648244,-200.0,0.00044066,10]
[408361729,1773492648253,-250.0,0.00044384,10]
[408361730,1773492648262,-1054.0,0.0004453,120]
[408361731,1773492648272,-200.0,0.00044655,10]
[408361732,1773492648281,-350.0,0.00044932,10]
[408361733,1773492648290,-151.23,0.0004499,2]
[408361734,1773492648299,-500.0,0.00044999,120]
[408361735,1773492648309,-500.0,0.00044999,30]
[408361736,1773492648318,-4843.0,0.00045,60]
[408361737,1773492648327,-114418.49339647,0.00045,120]
[408361738,1773492648337,-160.0,0.00045,120]
[408361739,1773492648347,-56403.14365128,0.00045,120]
[408361740,1773492648356,-241.64,0.00045,120]
[408361741,1773492648365,-186.32,0.00045,60]
[408361742,1773492648374,-449.41,0.00045,60]
[408361743,1773492648384,-1695.1706,0.00045013,2]
[408361744,1773492648394,-1054.0,0.00045211,120]
[408361745,1773492648403,-416.69791709,0.00045479,10]
[408361746,1773492648412,-171.57,0.000456,14]
[408361747,1773492648422,-5000.0,0.00045801,120]
[408361748,1773492648431,-1054.0,0.00045892,120]
[408361749,1773492648440,-150.0,0.00045901,14]
[408361750,1773492648449,-150.0,0.00045901,14]
[408361751,1773492648459,-152.0,0.00045901,14]
[408361752,1773492648468,-152.0,0.0004594,5]
[408361753,1773492648477,-626.36618144,0.00045989,120]
[408361754,1773492648486,-151.0,0.00046,79]
[408361755,1773492648495,-500.0,0.00046,120]
[408361756,1773492648504,-205.34652533,0.00046027,2]
[408361757,1773492648513,-259.0,0.00046052,14]
[408361758,1773492648522,-153.56106977,0.00046108,120]
[408361759,1773492648534,-644.0552,0.00046227,30]
[408361760,1773492648544,-151.23,0.0004629,2]
[408361761,1773492648553,-304.0,0.000463,30]
[408361762,1773492648562,-995.0,0.000463,30]
[408361763,1773492648572,-311.0,0.000463,30]
[408361764,1773492648582,-204.0,0.000463,30]
[408361766,1773492648591,-150.0,0.0004632,2]
[408361767,1773492648600,-150.0,0.0004632,2]
[408361768,1773492648609,-276.0,0.0004632,2]
[408361769,1773492648619,-163.0,0.0004632,2]
[408361770,1773492648628,-308.0,0.0004632,2]
[408361771,1773492648637,-4843.0,0.0004635,60]
[408361772,1773492648646,-315.36856708,0.00046396,120]
[408361773,1773492648655,-279.55,0.000464,14]
[408361774,1773492648664,-2000.0,0.000464,2]
[408361775,1773492648675,-160.0,0.000464,120]
[408361776,1773492648685,-1054.0,0.00046573,120]
[408361777,1773492648694,-200.0,0.00046577,2]
[408361778,1773492648703,-200.0,0.00046577,2]
[408361779,1773492648713,-200.0,0.00046577,2]
[408361780,1773492648722,-200.0,0.00046577,2]
[408361781,1773492648731,-200.0,0.00046577,2]
[408361782,1773492648740,-200.0,0.00046577,2]
[408361783,1773492648749,-200.0,0.00046577,2]
[408361784,1773492648760,-200.0,0.00046577,2]
[408361785,1773492648770,-200.0,0.00046577,2]
[408361786,1773492648779,-200.0,0.00046577,2]
[408361787,1773492648788,-200.0,0.00046577,2]
[408361788,1773492648797,-269.0,0.00046577,2]
[408361789,1773492648806,-171.57,0.000466,14]
[408361790,1773492648816,-235.87,0.00046653,14]
[408361791,1773492648824,-620.0,0.00046718,2]
[408361792,1773492648834,-1246.404,0.00046718,2]
[408361793,1773492648981,-414.0,0.00046718,2]
[408361794,1773492649005,-2463.0,0.00046718,2]
[408361795,1773492649018,-150.0,0.00046753,14]
[408361796,1773492649028,-150.0,0.00046753,14]
[408361797,1773492649038,-218.0,0.00046753,14]
[408361798,1773492649047,-225.0,0.00046753,14]
[408361799,1773492649056,-506.0,0.00046842,29]
[408361800,1773492649066,-1552.09673909,0.000469,120]
[408361801,1773492649075,-150.0,0.00046909,2]
[408361802,1773492649084,-150.0,0.00046909,2]
[408361803,1773492649094,-202.0,0.00046909,2]
[408361804,1773492649103,-150.0,0.00047,82]
[408361805,1773492649113,-160.0,0.00047025,2]
[408361806,1773492649122,-1000.0,0.00047228,21]
[408361807,1773492649132,-186.32,0.0004725,60]
[408361808,1773492649141,-449.41,0.0004725,60]
[408361809,1773492649151,-1054.0,0.00047254,120]
[408361810,1773492649161,-2000.0,0.00047318,4]
[408361811,1773492649171,-923.678,0.00047318,4]
[408361812,1773492649180,-500.0,0.00047403,120]
[408361813,1773492649193,-227.02109222,0.00047535,25]
[408361814,1773492649202,-344.2917,0.000476,90]
[408361815,1773492649212,-221.93216283,0.000476,120]
[408361816,1773492649223,-184.11781502,0.000476,90]
[408361817,1773492649233,-151.23,0.00047625,2]
[408361818,1773492649243,-151.23,0.00047625,2]
[408361819,1773492649254,-151.23,0.00047625,2]
[408361820,1773492649263,-1152.0,0.00047632,2]
[408361821,1773492649274,-500.0,0.00047634,120]
[408361822,1773492649285,-500.0,0.00047634,30]
[408361823,1773492649295,-500.0,0.00047635,120]
[408361824,1773492649306,-7999.79001,0.00047635,120]
[408361825,1773492649315,-111736.49530016,0.00047635,30]
[408361826,1773492649334,-17365.7200698,0.00047635,30]
[408361827,1773492649352,-57900.79936612,0.00047635,30]
[408361828,1773492649369,-279.70878,0.00047635,30]
[408361829,1773492649387,-3547.43151558,0.00047635,30]
[408361873,1773493831974,-166.74,0.00016712,2]
[408361874,1773493831984,-506.0,0.00017,2]
[408361875,1773493831993,-1369.48,0.0001777,2]
[408361876,1773493832003,-316.0,0.00018,10]
[408361877,1773493832012,-2500.0,0.000187,6]
[408361878,1773493832022,-5100.0,0.000188,6]
[408361879,1773493832031,-2406.438,0.00018854,2]
[408361880,1773493832040,-174.16594928,0.00018854,2]
[408361881,1773493832051,-5621.09085607,0.000189,6]
[408361882,1773493832063,-1978.90914393,0.000189,6]
[408361883,1773493832072,-593.41208003,0.000191,8]
[408361884,1773493832081,-195.30337651,0.00019128,2]
[408361885,1773493832091,-9253.2407383,0.00019138,2]
[408361886,1773493832101,-5623.09673002,0.00019138,2]
[408361887,1773493832210,-1932.49,0.00019138,2]
[408361888,1773493832221,-1673.79191037,0.00019138,2]
[408361890,1773493837958,-3315.13610648,0.00019138,2]
[408361891,1773493837969,-593.41340116,0.00019138,2]
[408361892,1773493838019,-1176.555,0.00019138,2]
[408361893,1773493838037,-11009.54627845,0.00019138,2]
[408361894,1773493838085,-7028.29999999,0.00019138,2]
[408361895,1773493838096,-322.44276551,0.00019138,2]
[408361896,1773493838139,-1244.377,0.00019138,2]
[408361907,1773493840204,-774.6985844,0.00019138,2]
[408361937,1773493843106,-352919.44514058,0.00019138,2]
[408361938,1773493843270,-2723.35186212,0.00019138,2]
[408361939,1773493843328,-2001.45876395,0.00019138,2]
[408361941,1773493843340,-70450.00000002,0.00019138,2]
[408361955,1773493845975,-1893.7153016,0.00019138,2]
[408361956,1773493846086,-11965.53507912,0.00019138,2]
[408361957,1773493846304,-426.0,0.00019138,2]
[408361993,1773494913374,10000.0,0.0001425,2]
[408361997,1773495032061,-506.0,0.00017,2]
[408361998,1773495032073,-289.683759,0.00017808,2]
[408361999,1773495032084,-510.316241,0.00017808,2]
[408362000,1773495032095,-331.074541,0.0001818,7]
[408362001,1773495032105,-200.0,0.00018344,2]
[408362002,1773495032117,-150.0,0.00018519,2]
[408362003,1773495032127,-232.0,0.00018519,2]
[408362004,1773495032136,-564.38298546,0.00018586,2]
[408362005,1773495032160,-2675.61701454,0.00018586,2]
[408362006,1773495032170,-1800.0,0.000187,6]
[408362007,1773495032183,-1200.0,0.00018781,2]
[408362008,1773495032194,-1204.16,0.00018782,2]
[408362009,1773495032203,-300.0,0.00018799,2]
[408362010,1773495032214,-3700.0,0.000188,6]
[408362011,1773495032224,-5600.0,0.000189,6]
[408362012,1773495032233,-184.9442051,0.00018937,2]
[408362013,1773495032243,-210.37783232,0.00019027,2]
[408362014,1773495032252,-316.0,0.00019035,2]
[408362015,1773495032262,-500.0,0.00019036,2]
[408362016,1773495032271,-602.90020667,0.00019036,2]
[408362017,1773495032281,-500.0,0.00019036,2]
[408362018,1773495032290,-500.0,0.00019036,2]
[408362020,1773495032300,-384.653728,0.00019036,2]
[408362022,1773495032309,-349.9076256,0.00019036,2]
[408362024,1773495032319,-500.0,0.00019036,2]
[408362025,1773495032328,-500.0,0.00019036,2]
[408362026,1773495032337,-500.0,0.00019036,2]
[408362027,1773495032347,-215.76176917,0.00019036,2]
[408362028,1773495032357,-500.0,0.00019036,2]
[408362029,1773495032367,-500.0,0.00019036,2]
[408362031,1773495032379,-178.46475675,0.00019036,2]
[408362033,1773495032388,-507.17926616,0.00019036,2]
[408362034,1773495032398,-500.0,0.00019036,2]
[408362035,1773495032407,-500.0,0.00019036,2]
[408362036,1773495032416,-500.0,0.00019036,2]
[408362037,1773495032426,-500.0,0.00019036,2]
[408362038,1773495032435,-525.49416932,0.00019036,2]
[408362039,1773495032444,-500.0,0.00019036,2]
[408362040,1773495032453,-865.3838588,0.00019036,2]
[408362041,1773495032463,-500.0,0.00019036,2]
[408362042,1773495032473,-347.07248994,0.00019036,2]
[408362043,1773495032482,-500.0,0.00019036,2]
[408362044,1773495032492,-500.0,0.00019036,2]
[408362045,1773495032501,-500.0,0.00019036,2]
[408362046,1773495032511,-865.3838588,0.00019036,2]
[408362047,1773495032520,-500.0,0.00019036,2]
[408362048,1773495032529,-500.0,0.00019036,2]
[408362049,1773495032538,-498.50568057,0.00019036,2]
[408362050,1773495032548,-500.0,0.00019036,2]
[408362051,1773495032557,-500.0,0.00019036,2]
[408362052,1773495032566,-865.3838588,0.00019036,2]
[408362053,1773495032576,-500.0,0.00019036,2]
[408362054,1773495032586,-865.3838588,0.00019036,2]
[408362055,1773495032597,-500.0,0.00019036,2]
[408362056,1773495032606,-500.0,0.00019036,2]
[408362057,1773495032618,-500.0,0.00019036,2]
[408362058,1773495032627,-865.3838588,0.00019036,2]
[408362059,1773495032637,-865.3838588,0.00019036,2]
[408362060,1773495032646,-500.0,0.00019036,2]
[408362061,1773495032656,-500.0,0.00019036,2]
[408362062,1773495032665,-500.0,0.00019036,2]
[408362063,1773495032675,-589.11910182,0.00019036,2]
[408362064,1773495032684,-865.3838588,0.00019036,2]
[408362065,1773495032694,-500.0,0.00019036,2]
[408362066,1773495032704,-500.0,0.00019036,2]
[408362067,1773495032713,-865.3838588,0.00019036,2]
[408362068,1773495032723,-327.2031332,0.00019036,2]
[408362069,1773495032734,-547.47040422,0.00019036,2]
[408362070,1773495032744,-865.3838588,0.00019036,2]
[408362071,1773495032754,-500.0,0.00019036,2]
[408362072,1773495032773,-865.3838588,0.00019036,2]
[408362073,1773495032784,-500.0,0.00019036,2]
[408362074,1773495032794,-865.3838588,0.00019036,2]
[408362075,1773495032804,-500.0,0.00019036,2]
[408362076,1773495032816,-865.3838588,0.00019036,2]
[408362077,1773495032828,-865.3838588,0.00019036,2]
[408362078,1773495032837,-865.3838588,0.00019036,2]
[408362079,1773495032847,-500.0,0.00019036,2]
[408362080,1773495032857,-865.3838588,0.00019036,2]
[408362081,1773495032867,-865.3838588,0.00019036,2]
[408362082,1773495032876,-500.0,0.00019036,2]
[408362083,1773495032888,-865.3838588,0.00019036,2]
[408362084,1773495032898,-865.3838588,0.00019036,2]
[408362085,1773495032908,-865.3838588,0.00019036,2]
[408362086,1773495032917,-865.3838588,0.00019036,2]
[408362087,1773495032927,-865.3838588,0.00019036,2]
[408362088,1773495032936,-865.3838588,0.00019036,2]
[408362089,1773495032946,-865.3838588,0.00019036,2]
[408362090,1773495032956,-865.3838588,0.00019036,2]
[408362091,1773495032966,-865.3838588,0.00019036,2]
[408362092,1773495032976,-865.3838588,0.00019036,2]
[408362093,1773495032986,-865.3838588,0.00019036,2]
[408362094,1773495032995,-865.3838588,0.00019036,2]
[408362095,1773495033016,-865.3838588,0.00019036,2]
[408362096,1773495033037,-865.3838588,0.00019036,2]
[408362097,1773495033051,-865.3838588,0.00019036,2]
[408362098,1773495033063,-865.3838588,0.00019036,2]
[408362099,1773495033073,-865.3838588,0.00019036,2]
[408362100,1773495033082,-865.3838588,0.00019036,2]
[408362101,1773495033093,-865.3838588,0.00019036,2]
[408362102,1773495033102,-865.3838588,0.00019036,2]
[408362103,1773495033113,-865.3838588,0.00019036,2]
[408362104,1773495033122,-865.3838588,0.00019036,2]
[408362105,1773495033132,-865.3838588,0.00019036,2]
[408362106,1773495033142,-865.3838588,0.00019036,2]
[408362107,1773495033151,-865.3838588,0.00019036,2]
[408362108,1773495033161,-865.3838588,0.00019036,2]
[408362109,1773495033171,-865.3838588,0.00019036,2]
[408362110,1773495033180,-865.3838588,0.00019036,2]
[408362111,1773495033192,-865.3838588,0.00019036,2]
[408362112,1773495033202,-865.3838588,0.00019036,2]
[408362113,1773495033212,-865.3838588,0.00019036,2]
[408362114,1773495033222,-865.3838588,0.00019036,2]
[408362115,1773495033232,-865.3838588,0.00019036,2]
[408362116,1773495033241,-865.3838588,0.00019036,2]
[408362117,1773495033251,-865.3838588,0.00019036,2]
[408362118,1773495033261,-865.3838588,0.00019036,2]
[408362119,1773495033271,-865.3838588,0.00019036,2]
[408362120,1773495033280,-865.3838588,0.00019036,2]
[408362121,1773495033290,-865.3838588,0.00019036,2]
[408362122,1773495033299,-865.3838588,0.00019036,2]
[408362123,1773495033309,-1427.58912849,0.00019036,2]
[408362124,1773495033319,-1427.58912849,0.00019036,2]
[408362125,1773495033328,-1427.58912849,0.00019036,2]
[408362126,1773495033338,-1427.58912849,0.00019036,2]
[408362127,1773495033348,-1427.58912849,0.00019036,2]
[408362128,1773495033357,-1427.58912849,0.00019036,2]
[408362129,1773495033367,-1427.58912849,0.00019036,2]
[408362130,1773495033377,-1427.58912849,0.00019036,2]
[408362131,1773495033386,-1427.58912849,0.00019036,2]
[408362132,1773495033396,-1427.58912849,0.00019036,2]
[408362133,1773495033406,-1427.58912849,0.00019036,2]
[408362134,1773495033416,-1427.58912849,0.00019036,2]
[408362135,1773495033427,-1427.58912849,0.00019036,2]
[408362136,1773495033436,-1427.58912849,0.00019036,2]
[408362137,1773495033447,-1427.58912849,0.00019036,2]
[408362138,1773495033456,-1427.58912849,0.00019036,2]
[408362139,1773495033466,-1427.58912849,0.00019036,2]
[408362140,1773495033475,-1427.58912849,0.00019036,2]
[408362141,1773495033485,-1427.58912849,0.00019036,2]
[408362142,1773495033495,-1427.58912849,0.00019036,2]
[408362143,1773495033505,-1427.58912849,0.00019036,2]
[408362144,1773495033515,-1427.58912849,0.00019036,2]
[408362145,1773495033525,-1427.58912849,0.00019036,2]
[408362146,1773495033535,-1427.58912849,0.00019036,2]
[408362147,1773495033545,-1427.58912849,0.00019036,2]
[408362148,1773495033555,-871.36666237,0.00019036,2]
[408362149,1773495033573,-556.22246612,0.00019036,2]
[408362150,1773495033584,-1427.58912849,0.00019036,2]
[408362151,1773495033594,-1427.58912849,0.00019036,2]
[408362152,1773495033604,-1427.58912849,0.00019036,2]
[408362153,1773495033615,-1427.58912849,0.00019036,2]
[408362154,1773495033625,-1427.58912849,0.00019036,2]
[408362155,1773495033635,-1427.58912849,0.00019036,2]
[408362156,1773495033644,-1427.58912849,0.00019036,2]
[408362157,1773495033872,-5452.09982474,0.00019037,2]
[408362158,1773495033889,-21217.86046904,0.00019037,2]
[408362159,1773495033902,-1137.82992972,0.00019037,2]
[408362160,1773495033918,-404.57355337,0.00019037,2]
[408362161,1773495033930,-829.38668649,0.00019037,2]
[408362165,1773495038153,-100093.92614512,0.00019037,2]
[408362166,1773495038213,-1000.18778537,0.00019037,2]
[408362167,1773495038224,-865.69,0.00019037,2]
[408362168,1773495038236,-671.07308538,0.00019037,2]
[408362169,1773495038247,-724.17935219,0.00019037,2]
[408362170,1773495038258,-1401.9124575,0.00019037,2]
[408362171,1773495038327,-35471.5862738,0.00019037,2]
[408362172,1773495038339,-1057.47540344,0.00019037,2]
[408362173,1773495038350,-7449.3522636,0.00019037,2]
[408362174,1773495038361,-439.68264673,0.00019037,2]
[408362351,1773495040411,-2661.3549546,0.00019037,2]
[408362352,1773495040851,-3711.4994669,0.00019037,2]
[408362356,1773495043248,-16146.36300254,0.00019037,2]
[408362357,1773495043305,-211617.00000002,0.00019037,2]
[408362358,1773495043417,-1087646.96669945,0.00019037,2]
[408362359,1773495043426,-297979.63656084,0.00019037,2]
[408362360,1773495043474,-294.16098455,0.00019037,2]
[408362361,1773495043533,-4294.6548011,0.00019037,2]
[408362363,1773495043545,-510.13958758,0.00019037,2]
[408362386,1773495046127,-3122.81980553,0.00019037,2]
[408362387,1773495046138,-769.61508824,0.00019037,2]
[408362388,1773495046404,-1686.53756833,0.00019037,2]
[408362389,1773495046461,-362.37599946,0.00019037,2]
[408362390,1773495046472,-94650.993849,0.00019037,2]
[408362400,1773495048022,2941.6,0.0002,120]
[408362403,1773495172392,178.05,9.793e-05,2]
[408362404,1773495172604,178.05,0.00013057,2]
[408362443,1773496231236,-1141.23,0.00014759,2]
[408362444,1773496231246,-194.24944797,0.00016235,2]
[408362446,1773496231256,-300.74190287,0.00016235,2]
[408362447,1773496231265,-178.05,0.00016321,2]
[408362448,1773496231279,-507.0,0.00017,2]
[408362449,1773496231289,-166.66,0.00017113,2]
[408362450,1773496231298,-166.66,0.00017473,2]
[408362451,1773496231308,-1200.0,0.00017792,2]
[408362452,1773496231318,-1259.06,0.00017793,2]
[408362453,1773496231327,-300.0,0.00017831,2]
[408362454,1773496231336,-13546.6938173,0.00017833,2]
[408362455,1773496231347,-492.21212702,0.00017833,2]
[408362456,1773496231358,-687.16138692,0.00017833,2]
[408362457,1773496231369,-1295.21988168,0.00017833,2]
[408362458,1773496231380,-1546.46476647,0.00017833,2]
[408362459,1773496231391,-21982.91154878,0.00017833,2]
[408362460,1773496231402,-3448.56823722,0.00017833,2]
[408362461,1773496231414,-1407.00725734,0.00017833,2]
[408362462,1773496231429,-784.32744492,0.00017833,2]
[408362463,1773496231440,-7779.46985046,0.00017833,2]
[408362464,1773496231451,-347.43508066,0.00017833,2]
[408362465,1773496231463,-321.55982235,0.00017833,2]
[408362466,1773496231474,-2045.34771873,0.00017833,2]
[408362468,1773496231485,-271.51356401,0.00017833,2]
[408362470,1773496231496,-896.73847504,0.00017833,2]
[408362474,1773496237357,-735.44834031,0.00017833,2]
[408362475,1773496237370,-3059.22637876,0.00017833,2]
[408362476,1773496237382,-449.3404125,0.00017833,2]
[408362477,1773496237393,-780.00000001,0.00017833,2]
[408362478,1773496237510,-1623.70486216,0.00017833,2]
[408362488,1773496239523,-480.92945769,0.00017833,2]
[408362489,1773496239581,-500.0,0.00017833,2]
[408362495,1773496244629,-2437.5719377,0.00017733,2]
[408362496,1773496244642,-12541.26726459,0.00017833,2]
[408362497,1773496244653,-2243.37561959,0.00017833,2]
[408362498,1773496244665,-2955.81124016,0.00017833,2]
[408362499,1773496244688,-13188.54544533,0.00017833,2]
[408362500,1773496244697,-166.66,0.00017833,2]
[408362501,1773496244707,-500.0,0.00017873,2]
[408362502,1773496244717,-500.0,0.00017873,2]
[408362503,1773496244726,-500.0,0.00017873,2]
[408362504,1773496244735,-220.072,0.00017873,2]
[408362505,1773496244744,-503.26645979,0.00017873,2]
[408362506,1773496244753,-160.04800079,0.00017873,2]
[408362507,1773496244761,-160.78545247,0.00017873,2]
[408362508,1773496244771,-160.048,0.00017873,2]
[408362509,1773496244780,-159.83968,0.00017873,2]
[408362510,1773496244789,-160.048,0.00017873,2]
[408362511,1773496244799,-500.46927556,0.00017873,2]
[408362513,1773496244808,-501.38283497,0.00017873,2]
[408362515,1773496244817,-500.0,0.00017873,2]
[408362516,1773496244826,-500.0,0.00017873,2]
[408362517,1773496244835,-500.0,0.00017873,2]
[408362518,1773496244843,-388.60866893,0.00017873,2]
[408362519,1773496244856,-364.87438983,0.00017873,2]
[408362520,1773496244865,-2500.0,0.00017953,2]
[408362521,1773496244874,-200.0,0.00017953,2]
[408362522,1773496244883,-250.0,0.00017953,2]
[408362523,1773496244893,-300.0,0.00017953,2]
[408362524,1773496244902,-500.0,0.00017953,2]
[408362525,1773496244911,-195.0,0.00017953,2]
[408362526,1773496244922,-382.65105002,0.00017953,2]
[408362527,1773496244930,-2500.0,0.00017953,2]
[408362528,1773496244940,-300.0,0.00017953,2]
[408362529,1773496244950,-600.0,0.00017953,2]
[408362530,1773496244959,-5000.0,0.00017953,2]
[408362531,1773496244969,-204.6,0.0001807,2]
[408362532,1773496244978,-3931.27,0.00018102,2]
[408362533,1773496244987,-166.66,0.00018194,2]
[408362534,1773496244997,-500.0,0.00018421,2]
[408362535,1773496245006,-196.23259882,0.00018421,2]
[408362536,1773496245016,-1127.19703471,0.00018421,2]
[408362537,1773496245025,-500.0,0.00018421,2]
[408362538,1773496245035,-1000.0,0.00018421,2]
[408362539,1773496245048,-1000.0,0.00018421,2]
[408362540,1773496245058,-500.0,0.00018421,2]
[408362542,1773496245067,-150.0,0.00018474,2]
[408362543,1773496245077,-166.66,0.00018554,2]
[408362544,1773496245086,-1300.0,0.000186,6]
[408362545,1773496245096,-2700.0,0.000187,6]
[408362546,1773496245105,-3886.38039427,0.000187,2]
[408362547,1773496245115,-8506.72021273,0.000187,2]
[408362548,1773496245124,-210.37783233,0.00018727,2]
[408362549,1773496245133,-500.0,0.00018736,2]
[408362550,1773496245143,-500.0,0.00018736,2]